fUSD/lending_fUSD_20260517
["ID","MTS","AMOUNT","RATE_DAILY","PERIOD"]
[422515524,1779018639000,-500.0,0.0001428,2]
[422515523,1779018639000,-500.0,0.0001428,2]
[422515531,1779018639000,-500.0,0.0001428,2]
[422515529,1779018639000,-500.0,0.0001428,2]
[422515525,1779018639000,-500.0,0.0001428,2]
[422515521,1779018639000,-500.0,0.0001428,2]
[422515527,1779018639000,-500.0,0.0001428,2]
[422515526,1779018639000,-300.40953825,0.0001428,2]
[422515528,1779018639000,-500.0,0.0001428,2]
[422515530,1779018639000,-500.0,0.0001428,2]
[422515536,1779018639000,-500.0,0.0001428,2]
[422515534,1779018639000,-500.0,0.0001428,2]
[422515535,1779018639000,-500.0,0.0001428,2]
[422515532,1779018639000,-500.0,0.0001428,2]
[422515559,1779018639000,-500.0,0.0001428,2]
[422515614,1779018639000,-500.0,0.00014898,2]
[422515568,1779018639000,-841.11,0.0001428,2]
[422515598,1779018639000,-500.0,0.0001452,2]
[422515599,1779018639000,-157.0,0.00014561,2]
[422515606,1779018639000,-500.0,0.00014665,2]
[422515600,1779018639000,-1729.98,0.000146,2]
[422515604,1779018639000,-500.0,0.00014665,2]
[422515602,1779018639000,-500.0,0.00014665,2]
[422515603,1779018639000,-500.0,0.00014665,2]
[422515608,1779018639000,-512.13,0.00014665,2]
[422515607,1779018639000,-841.11,0.00014665,2]
[422515618,1779018639000,-500.0,0.00014898,2]
[422515609,1779018639000,-505.9,0.00014665,2]
[422515611,1779018639000,-607.62,0.00014776,2]
[422515597,1779018639000,-255.0,0.00014503,2]
[422515612,1779018639000,-500.0,0.00014794,2]
[422515613,1779018639000,-500.0,0.00014898,2]
[422515615,1779018639000,-958.33,0.00014898,2]
[422515617,1779018639000,-500.0,0.00014898,2]
[422515620,1779018639000,-500.0,0.00014899,2]
[422515619,1779018639000,-500.0,0.00014899,2]
[422515625,1779018639000,-500.0,0.00014899,2]
[422515623,1779018639000,-500.0,0.00014899,2]
[422515621,1779018639000,-500.0,0.00014899,2]
[422515626,1779018639000,-500.0,0.00014899,2]
[422515624,1779018639000,-500.0,0.00014899,2]
[422515622,1779018639000,-483.44966111,0.00014899,2]
[422515561,1779018639000,-500.0,0.0001428,2]
[422515616,1779018639000,-823.2,0.00014898,2]
[422515601,1779018639000,-166.66,0.00014639,2]
[422515610,1779018639000,-150.0,0.00014686,2]
[422515605,1779018639000,-500.0,0.00014665,2]
[422515579,1779018639000,-512.13,0.0001428,2]
[422515596,1779018639000,-166.66,0.00014451,2]
[422515571,1779018639000,-841.11,0.0001428,2]
[422515569,1779018639000,-841.11,0.0001428,2]
[422515572,1779018639000,-841.11,0.0001428,2]
[422515580,1779018639000,-512.13,0.0001428,2]
[422515573,1779018639000,-500.0,0.0001428,2]
[422515576,1779018639000,-500.0,0.0001428,2]
[422515575,1779018639000,-500.0,0.0001428,2]
[422515574,1779018639000,-500.0,0.0001428,2]
[422515577,1779018639000,-514.8980104,0.0001428,2]
[422515578,1779018639000,-512.13,0.0001428,2]
[422515582,1779018639000,-512.13,0.0001428,2]
[422515592,1779018639000,-505.9,0.0001428,2]
[422515570,1779018639000,-841.11,0.0001428,2]
[422515595,1779018639000,-607.62,0.00014424,2]
[422515594,1779018639000,-172.54,0.00014339,2]
[422515590,1779018639000,-505.9,0.0001428,2]
[422515587,1779018639000,-505.9,0.0001428,2]
[422515589,1779018639000,-505.9,0.0001428,2]
[422515593,1779018639000,-505.9,0.0001428,2]
[422515586,1779018639000,-505.9,0.0001428,2]
[422515591,1779018639000,-505.9,0.0001428,2]
[422515588,1779018639000,-505.9,0.0001428,2]
[422515581,1779018639000,-512.13,0.0001428,2]
[422515585,1779018639000,-512.13,0.0001428,2]
[422515584,1779018639000,-512.13,0.0001428,2]
[422515583,1779018639000,-512.13,0.0001428,2]
[422515669,1779018640000,-841.11,0.00014899,2]
[422515670,1779018640000,-841.11,0.00014899,2]
[422515664,1779018640000,-841.11,0.00014899,2]
[422515663,1779018640000,-841.11,0.00014899,2]
[422515662,1779018640000,-841.11,0.00014899,2]
[422515667,1779018640000,-841.11,0.00014899,2]
[422515660,1779018640000,-841.11,0.00014899,2]
[422515665,1779018640000,-841.11,0.00014899,2]
[422515657,1779018640000,-309.02129379,0.00014899,2]
[422515659,1779018640000,-841.11,0.00014899,2]
[422515675,1779018640000,-512.13,0.00014899,2]
[422515655,1779018640000,-500.0,0.00014899,2]
[422515661,1779018640000,-841.11,0.00014899,2]
[422515672,1779018640000,-841.30572099,0.00014899,2]
[422515674,1779018640000,-512.13,0.00014899,2]
[422515671,1779018640000,-841.11,0.00014899,2]
[422515680,1779018640000,-512.13,0.00014899,2]
[422515676,1779018640000,-512.13,0.00014899,2]
[422515681,1779018640000,-512.13,0.00014899,2]
[422515677,1779018640000,-512.13,0.00014899,2]
[422515679,1779018640000,-512.13,0.00014899,2]
[422515678,1779018640000,-512.13,0.00014899,2]
[422515684,1779018640000,-512.13,0.00014899,2]
[422515683,1779018640000,-512.13,0.00014899,2]
[422515694,1779018640000,-505.9,0.00014899,2]
[422515687,1779018640000,-512.18213245,0.00014899,2]
[422515685,1779018640000,-512.13,0.00014899,2]
[422515682,1779018640000,-512.13,0.00014899,2]
[422515658,1779018640000,-841.11,0.00014899,2]
[422515631,1779018640000,-500.0,0.00014899,2]
[422515656,1779018640000,-500.0,0.00014899,2]
[422515686,1779018640000,-512.13,0.00014899,2]
[422515630,1779018640000,-502.83349432,0.00014899,2]
[422515628,1779018640000,-500.0,0.00014899,2]
[422515629,1779018640000,-500.0,0.00014899,2]
[422515627,1779018640000,-500.0,0.00014899,2]
[422515633,1779018640000,-500.0,0.00014899,2]
[422515632,1779018640000,-500.0,0.00014899,2]
[422515643,1779018640000,-500.0,0.00014899,2]
[422515635,1779018640000,-500.0,0.00014899,2]
[422515634,1779018640000,-500.0,0.00014899,2]
[422515636,1779018640000,-500.0,0.00014899,2]
[422515637,1779018640000,-500.0,0.00014899,2]
[422515639,1779018640000,-500.0,0.00014899,2]
[422515668,1779018640000,-841.11,0.00014899,2]
[422515640,1779018640000,-500.0,0.00014899,2]
[422515638,1779018640000,-500.0,0.00014899,2]
[422515642,1779018640000,-500.0,0.00014899,2]
[422515645,1779018640000,-500.0,0.00014899,2]
[422515644,1779018640000,-500.0,0.00014899,2]
[422515646,1779018640000,-500.0,0.00014899,2]
[422515647,1779018640000,-500.0,0.00014899,2]
[422515651,1779018640000,-500.0,0.00014899,2]
[422515654,1779018640000,-500.0,0.00014899,2]
[422515649,1779018640000,-500.0,0.00014899,2]
[422515650,1779018640000,-500.0,0.00014899,2]
[422515652,1779018640000,-508.45785621,0.00014899,2]
[422515648,1779018640000,-372.71342826,0.00014899,2]
[422515653,1779018640000,-500.0,0.00014899,2]
[422515641,1779018640000,-500.0,0.00014899,2]
[422515688,1779018640000,-505.9,0.00014899,2]
[422515738,1779018640000,-405.53,0.000168,2]
[422515691,1779018640000,-505.9,0.00014899,2]
[422515725,1779018640000,-157.0,0.00016179,2]
[422515722,1779018640000,-400.90550288,0.000161,2]
[422515728,1779018640000,-500.0,0.00016438,2]
[422515733,1779018640000,-9353.44893307,0.00016588,2]
[422515731,1779018640000,-354.01,0.00016438,2]
[422515729,1779018640000,-1290.8,0.00016438,2]
[422515730,1779018640000,-229.97,0.00016438,2]
[422515726,1779018640000,-400.90550288,0.000162,2]
[422515732,1779018640000,-15938.38169344,0.00016523,2]
[422515734,1779018640000,-166.66,0.00016603,2]
[422515727,1779018640000,-164.41,0.00016216,2]
[422515736,1779018640000,-162.97,0.00016712,2]
[422515735,1779018640000,-500.0,0.00016712,2]
[422515724,1779018640000,-500.0,0.00016164,2]
[422515737,1779018640000,-2000.0,0.00016741,2]
[422515756,1779018640000,-151.0,0.00017231,2]
[422515739,1779018640000,-500.0,0.00016986,2]
[422515741,1779018640000,-736.0,0.00017007,2]
[422515740,1779018640000,-150.0,0.00017,2]
[422515744,1779018640000,-166.66,0.00017133,2]
[422515750,1779018640000,-151.0,0.00017231,2]
[422515742,1779018640000,-3292.0,0.00017132,2]
[422515764,1779018640000,-151.0,0.00017231,2]
[422515752,1779018640000,-151.0,0.00017231,2]
[422515754,1779018640000,-151.0,0.00017231,2]
[422515762,1779018640000,-151.0,0.00017231,2]
[422515759,1779018640000,-151.0,0.00017231,2]
[422515693,1779018640000,-505.9,0.00014899,2]
[422515748,1779018640000,-151.0,0.00017231,2]
[422515723,1779018640000,-7952.13,0.00016116,2]
[422515746,1779018640000,-151.0,0.00017231,2]
[422515717,1779018640000,-433.0,0.00015708,2]
[422515721,1779018640000,-166.66,0.00016072,2]
[422515689,1779018640000,-505.9,0.00014899,2]
[422515692,1779018640000,-505.9,0.00014899,2]
[422515695,1779018640000,-505.9,0.00014899,2]
[422515702,1779018640000,-1500.0,0.000149,5]
[422515707,1779018640000,-507.15627863,0.00014999,2]
[422515706,1779018640000,-500.0,0.00014999,2]
[422515697,1779018640000,-505.9,0.00014899,2]
[422515701,1779018640000,-505.90661964,0.00014899,2]
[422515705,1779018640000,-500.0,0.00014999,2]
[422515699,1779018640000,-505.9,0.00014899,2]
[422515698,1779018640000,-505.9,0.00014899,2]
[422515700,1779018640000,-505.9,0.00014899,2]
[422515703,1779018640000,-500.0,0.00014961,2]
[422515690,1779018640000,-505.9,0.00014899,2]
[422515696,1779018640000,-505.9,0.00014899,2]
[422515704,1779018640000,-500.0,0.00014999,2]
[422515714,1779018640000,-607.62,0.0001548,2]
[422515715,1779018640000,-2351.0,0.00015575,2]
[422515720,1779018640000,-400.90550288,0.00016,2]
[422515718,1779018640000,-500.0,0.0001589,2]
[422515712,1779018640000,-500.0,0.00015342,2]
[422515713,1779018640000,-405.53,0.0001543,2]
[422515719,1779018640000,-300.0,0.00016,2]
[422515716,1779018640000,-500.0,0.00015616,2]
[422515711,1779018640000,-607.62,0.00015128,2]
[422515708,1779018640000,-500.0,0.00015058,2]
[422515710,1779018640000,-500.0,0.00015068,2]
[422515709,1779018640000,-2000.0,0.00015067,2]
[422515850,1779018641000,-500.0,0.00017808,2]
[422515843,1779018641000,-500.0,0.00017808,2]
[422515842,1779018641000,-500.0,0.00017808,2]
[422515847,1779018641000,-500.0,0.00017808,2]
[422515841,1779018641000,-500.0,0.00017808,2]
[422515838,1779018641000,-500.0,0.00017808,2]
[422515840,1779018641000,-500.0,0.00017808,2]
[422515828,1779018641000,-500.0,0.00017808,2]
[422515839,1779018641000,-500.0,0.00017808,2]
[422515836,1779018641000,-522.22381969,0.00017808,2]
[422515849,1779018641000,-500.0,0.00017808,2]
[422515845,1779018641000,-500.0,0.00017808,2]
[422515859,1779018641000,-500.0,0.00017808,2]
[422515856,1779018641000,-500.0,0.00017808,2]
[422515854,1779018641000,-500.0,0.00017808,2]
[422515858,1779018641000,-500.0,0.00017808,2]
[422515852,1779018641000,-500.0,0.00017808,2]
[422515851,1779018641000,-500.0,0.00017808,2]
[422515860,1779018641000,-500.0,0.00017808,2]
[422515853,1779018641000,-500.0,0.00017808,2]
[422515857,1779018641000,-500.0,0.00017808,2]
[422515855,1779018641000,-500.0,0.00017808,2]
[422515863,1779018641000,-500.0,0.00017808,2]
[422515875,1779018641000,-150.0,0.0001799,2]
[422515873,1779018641000,-500.0,0.00017899,2]
[422515874,1779018641000,-84609.7037679,0.000179,2]
[422515834,1779018641000,-500.0,0.00017808,2]
[422515861,1779018641000,-500.0,0.00017808,2]
[422515830,1779018641000,-500.0,0.00017808,2]
[422515768,1779018641000,-151.0,0.00017231,2]
[422515826,1779018641000,-500.0,0.00017808,2]
[422515862,1779018641000,-500.0,0.00017808,2]
[422515766,1779018641000,-151.0,0.00017231,2]
[422515771,1779018641000,-151.0,0.00017231,2]
[422515773,1779018641000,-151.0,0.00017231,2]
[422515777,1779018641000,-151.0,0.00017231,2]
[422515775,1779018641000,-151.0,0.00017231,2]
[422515779,1779018641000,-151.0,0.00017231,2]
[422515791,1779018641000,-500.0,0.00017534,2]
[422515785,1779018641000,-151.0,0.00017231,2]
[422515787,1779018641000,-151.0,0.00017231,2]
[422515789,1779018641000,-500.0,0.0001726,2]
[422515781,1779018641000,-151.0,0.00017231,2]
[422515783,1779018641000,-151.0,0.00017231,2]
[422515793,1779018641000,-166.66,0.00017664,2]
[422515797,1779018641000,-506.24551961,0.00017808,2]
[422515795,1779018641000,-157.0,0.00017796,2]
[422515799,1779018641000,-500.0,0.00017808,2]
[422515801,1779018641000,-500.0,0.00017808,2]
[422515803,1779018641000,-500.0,0.00017808,2]
[422515813,1779018641000,-500.0,0.00017808,2]
[422515815,1779018641000,-500.0,0.00017808,2]
[422515805,1779018641000,-500.0,0.00017808,2]
[422515809,1779018641000,-500.0,0.00017808,2]
[422515811,1779018641000,-500.0,0.00017808,2]
[422515807,1779018641000,-500.0,0.00017808,2]
[422515817,1779018641000,-500.0,0.00017808,2]
[422515821,1779018641000,-500.0,0.00017808,2]
[422515823,1779018641000,-500.0,0.00017808,2]
[422515819,1779018641000,-500.0,0.00017808,2]
[422515832,1779018641000,-500.0,0.00017808,2]
[422515864,1779018641000,-500.0,0.00017808,2]
[422515869,1779018641000,-500.0,0.00017808,2]
[422515866,1779018641000,-500.0,0.00017808,2]
[422515903,1779018641000,-15000.0,0.0002,2]
[422515905,1779018641000,-154.0,0.0002,2]
[422515907,1779018641000,-152.0,0.0002,2]
[422515914,1779018641000,-418.0,0.0002,2]
[422515908,1779018641000,-200000.0,0.0002,2]
[422515906,1779018641000,-200.19,0.0002,2]
[422515910,1779018641000,-181.42,0.0002,2]
[422515913,1779018641000,-26034.0,0.0002,2]
[422515909,1779018641000,-510.0,0.0002,2]
[422515911,1779018641000,-661.0,0.0002,2]
[422515912,1779018641000,-153.0,0.0002,2]
[422515927,1779018641000,-150.0,0.0002058,2]
[422515915,1779018641000,-482.01,0.0002,2]
[422515904,1779018641000,-6111.0,0.0002,2]
[422515916,1779018641000,-151.0,0.0002,2]
[422515918,1779018641000,-1290.8,0.00020381,2]
[422515921,1779018641000,-3980.73,0.00020548,2]
[422515917,1779018641000,-2000.0,0.00020089,2]
[422515919,1779018641000,-3980.73,0.00020548,2]
[422515920,1779018641000,-3980.73,0.00020548,2]
[422515925,1779018641000,-150.0,0.0002058,2]
[422515924,1779018641000,-150.0,0.0002058,2]
[422515923,1779018641000,-2771.76,0.00020548,2]
[422515922,1779018641000,-3980.72,0.00020548,2]
[422515928,1779018641000,-150.0,0.0002058,2]
[422515865,1779018641000,-500.0,0.00017808,2]
[422515931,1779018641000,-6453.0,0.0002073,2]
[422515929,1779018641000,-150.0,0.0002058,2]
[422515926,1779018641000,-150.0,0.0002058,2]
[422515894,1779018641000,-3000.0,0.00019178,2]
[422515930,1779018641000,-150.0,0.0002058,2]
[422515893,1779018641000,-14309.45605279,0.00019101,4]
[422515898,1779018641000,-9353.44893307,0.0001958,2]
[422515867,1779018641000,-450.0,0.00017808,2]
[422515871,1779018641000,-958.33,0.00017899,2]
[422515872,1779018641000,-823.2,0.00017899,2]
[422515868,1779018641000,-500.0,0.00017808,2]
[422515878,1779018641000,-1269.96407723,0.00018146,2]
[422515876,1779018641000,-350.0,0.00018,2]
[422515882,1779018641000,-1290.8,0.0001841,2]
[422515881,1779018641000,-54636.46,0.00018356,2]
[422515883,1779018641000,-2000.0,0.00018415,2]
[422515877,1779018641000,-3407.52,0.00018132,2]
[422515880,1779018641000,-166.66,0.00018195,2]
[422515887,1779018641000,-4609.0,0.00018845,2]
[422515884,1779018641000,-1252.0,0.00018427,2]
[422515870,1779018641000,-500.0,0.00017808,2]
[422515879,1779018641000,-150.0,0.00018173,2]
[422515888,1779018641000,-500.0,0.000191,2]
[422515895,1779018641000,-3000.0,0.00019178,7]
[422515902,1779018641000,-400.0,0.0002,2]
[422515900,1779018641000,-2129.0,0.00019953,2]
[422515891,1779018641000,-15000.0,0.00019101,4]
[422515899,1779018641000,-160.88,0.000198,3]
[422515896,1779018641000,-157.0,0.00019414,2]
[422515889,1779018641000,-500.0,0.000191,2]
[422515886,1779018641000,-166.66,0.00018725,2]
[422515901,1779018641000,-387.0,0.0002,2]
[422515897,1779018641000,-164.41,0.00019459,2]
[422515890,1779018641000,-15000.0,0.00019101,4]
[422515892,1779018641000,-15000.0,0.00019101,4]
[422515885,1779018641000,-501.41180139,0.00018597,2]
[422515954,1779018642000,-823.2,0.00021822,2]
[422515972,1779018642000,-1756.73,0.00022466,2]
[422515962,1779018642000,-387.0,0.00022,2]
[422515956,1779018642000,-482.01,0.00021857,2]
[422515964,1779018642000,-154.0,0.00022,2]
[422515966,1779018642000,-510.0,0.00022,2]
[422515969,1779018642000,-418.0,0.00022,2]
[422515968,1779018642000,-153.0,0.00022,2]
[422515967,1779018642000,-661.0,0.00022,2]
[422515978,1779018642000,-387.0,0.00023,2]
[422515971,1779018642000,-1290.8,0.00022353,2]
[422515960,1779018642000,-3075.54,0.00021918,2]
[422515979,1779018642000,-1927.0,0.00023,2]
[422515973,1779018642000,-1575.83,0.00022466,2]
[422515977,1779018642000,-296.62019742,0.00022831,2]
[422515975,1779018642000,-1269.96407723,0.00022697,2]
[422515974,1779018642000,-9353.44893307,0.00022573,2]
[422515976,1779018642000,-9035.0,0.00022803,2]
[422515980,1779018642000,-154.0,0.00023,2]
[422515981,1779018642000,-510.0,0.00023,2]
[422515983,1779018642000,-153.0,0.00023,2]
[422515985,1779018642000,-1201.0,0.00023225,5]
[422515986,1779018642000,-960.0,0.00023225,5]
[422515994,1779018642000,-510.0,0.00024,2]
[422515957,1779018642000,-5000.0,0.00021918,2]
[422515970,1779018642000,-164.0,0.00022,2]
[422515961,1779018642000,-296.62019742,0.00021918,2]
[422515953,1779018642000,-958.33,0.00021822,2]
[422515959,1779018642000,-742.1877375,0.00021918,3]
[422515989,1779018642000,-482.01,0.00023714,2]
[422515937,1779018642000,-154.0,0.00021,2]
[422515934,1779018642000,-6111.0,0.00021,2]
[422515936,1779018642000,-6111.0,0.00021,2]
[422515933,1779018642000,-15000.0,0.00021,2]
[422515932,1779018642000,-387.0,0.00021,2]
[422515938,1779018642000,-152.0,0.00021,2]
[422515939,1779018642000,-510.0,0.00021,2]
[422515935,1779018642000,-15000.0,0.00021,2]
[422515940,1779018642000,-661.0,0.00021,2]
[422515942,1779018642000,-418.0,0.00021,2]
[422515941,1779018642000,-153.0,0.00021,2]
[422515952,1779018642000,-3620.0,0.00021614,2]
[422515943,1779018642000,-525.27670665,0.00021,2]
[422515946,1779018642000,-5000.01,0.00021,2]
[422515945,1779018642000,-286.56,0.00021,2]
[422515944,1779018642000,-151.0,0.00021,2]
[422515948,1779018642000,-5000.01,0.00021,2]
[422515950,1779018642000,-2291.08346558,0.00021,2]
[422515947,1779018642000,-5000.01,0.00021,2]
[422515949,1779018642000,-10000.01,0.00021,2]
[422515951,1779018642000,-2532.37722821,0.00021396,2]
[422515955,1779018642000,-500.0,0.00021822,2]
[422515965,1779018642000,-165.47870466,0.00022,2]
[422515958,1779018642000,-1004.62,0.00021918,2]
[422515963,1779018642000,-450.0,0.00022,2]
[422515984,1779018642000,-418.0,0.00023,2]
[422515982,1779018642000,-661.0,0.00023,2]
[422515990,1779018642000,-296.62019742,0.00023744,2]
[422516020,1779018642000,-522.70135963,0.00025,2]
[422516021,1779018642000,-665.48457954,0.00025,2]
[422516022,1779018642000,-170.0,0.00025,2]
[422516031,1779018642000,-1223.0,0.00025192,2]
[422516023,1779018642000,-435.0,0.00025,2]
[422516024,1779018642000,-5517.0,0.00025083,2]
[422516025,1779018642000,-164.82,0.00025192,2]
[422516028,1779018642000,-927.0,0.00025192,2]
[422516027,1779018642000,-3558.235,0.00025192,2]
[422516029,1779018642000,-150.0,0.00025192,2]
[422516030,1779018642000,-1270.0,0.00025192,2]
[422516026,1779018642000,-625.0,0.00025192,2]
[422516018,1779018642000,-210.74877588,0.00025,2]
[422516032,1779018642000,-219.0,0.00025192,2]
[422516035,1779018642000,-418.405,0.00025192,2]
[422516033,1779018642000,-275.0,0.00025192,2]
[422516040,1779018642000,-155.89,0.00025302,2]
[422516044,1779018642000,-210.74877588,0.000255,2]
[422516037,1779018642000,-160.86,0.00025234,30]
[422516039,1779018642000,-210.74877588,0.000253,2]
[422516038,1779018642000,-2532.37722821,0.00025297,2]
[422516041,1779018642000,-155.75,0.00025302,2]
[422516036,1779018642000,-160.52,0.00025234,30]
[422516042,1779018642000,-605.80084441,0.00025397,2]
[422516045,1779018642000,-160.52,0.00025523,2]
[422515987,1779018642000,-333.04,0.00023262,2]
[422516043,1779018642000,-172.54,0.00025435,2]
[422516016,1779018642000,-155.75,0.0002498,7]
[422516034,1779018642000,-930.0,0.00025192,2]
[422516015,1779018642000,-155.89,0.0002498,7]
[422516017,1779018642000,-405.19480935,0.00025,2]
[422515988,1779018642000,-4491.0,0.00023395,2]
[422515991,1779018642000,-387.0,0.00024,2]
[422515992,1779018642000,-500.0,0.00024,2]
[422515993,1779018642000,-154.0,0.00024,2]
[422516001,1779018642000,-728.65,0.00024174,2]
[422516004,1779018642000,-1000.0,0.00024658,2]
[422516046,1779018642000,-160.86,0.00025523,2]
[422516003,1779018642000,-1290.8,0.00024324,2]
[422515996,1779018642000,-153.0,0.00024,2]
[422516002,1779018642000,-1993.8,0.00024174,2]
[422516000,1779018642000,-328.94,0.00024174,2]
[422515999,1779018642000,-4207.55,0.00024174,2]
[422516007,1779018642000,-155.89,0.00024658,2]
[422516014,1779018642000,-160.86,0.00024946,7]
[422515998,1779018642000,-236.6,0.00024174,2]
[422516013,1779018642000,-160.52,0.00024946,7]
[422516019,1779018642000,-156.45405378,0.00025,2]
[422516012,1779018642000,-210.74877588,0.000248,2]
[422516010,1779018642000,-160.0,0.0002478,2]
[422516009,1779018642000,-155.75,0.00024658,2]
[422516011,1779018642000,-215.0785988,0.0002478,2]
[422515995,1779018642000,-661.0,0.00024,2]
[422515997,1779018642000,-418.0,0.00024,2]
[422516005,1779018642000,-296.62019742,0.00024658,2]
[422516006,1779018642000,-160.52,0.00024658,2]
[422516008,1779018642000,-160.86,0.00024658,2]
[422516090,1779018643000,-500.0,0.00027123,2]
[422516086,1779018643000,-500.0,0.00027123,2]
[422516087,1779018643000,-500.0,0.00027123,2]
[422516089,1779018643000,-500.0,0.00027123,2]
[422516093,1779018643000,-500.0,0.00027123,2]
[422516083,1779018643000,-979.34,0.00027123,2]
[422516078,1779018643000,-500.0,0.00027123,2]
[422516084,1779018643000,-500.0,0.00027123,2]
[422516082,1779018643000,-500.0,0.00027123,2]
[422516075,1779018643000,-500.0,0.00027123,2]
[422516080,1779018643000,-500.0,0.00027123,2]
[422516088,1779018643000,-500.0,0.00027123,2]
[422516085,1779018643000,-500.0,0.00027123,2]
[422516092,1779018643000,-500.0,0.00027123,2]
[422516107,1779018643000,-500.0,0.00027123,2]
[422516097,1779018643000,-500.0,0.00027123,2]
[422516094,1779018643000,-500.0,0.00027123,2]
[422516095,1779018643000,-500.0,0.00027123,2]
[422516098,1779018643000,-500.0,0.00027123,2]
[422516106,1779018643000,-500.0,0.00027123,2]
[422516105,1779018643000,-500.0,0.00027123,2]
[422516096,1779018643000,-500.0,0.00027123,2]
[422516102,1779018643000,-500.0,0.00027123,2]
[422516103,1779018643000,-500.0,0.00027123,2]
[422516104,1779018643000,-500.0,0.00027123,2]
[422516099,1779018643000,-500.0,0.00027123,2]
[422516100,1779018643000,-500.0,0.00027123,2]
[422516079,1779018643000,-500.0,0.00027123,2]
[422516091,1779018643000,-500.0,0.00027123,2]
[422516077,1779018643000,-500.0,0.00027123,2]
[422516047,1779018643000,-9353.44893307,0.00025566,2]
[422516074,1779018643000,-500.0,0.00027123,2]
[422516056,1779018643000,-1993.8,0.00025786,2]
[422516108,1779018643000,-500.0,0.00027123,2]
[422516048,1779018643000,-296.62019742,0.00025571,2]
[422516049,1779018643000,-482.01,0.00025572,7]
[422516055,1779018643000,-728.65,0.00025786,2]
[422516053,1779018643000,-4207.55,0.00025786,2]
[422516050,1779018643000,-500.0,0.0002573,2]
[422516051,1779018643000,-500.0,0.0002573,2]
[422516052,1779018643000,-236.6,0.00025786,2]
[422516054,1779018643000,-328.94,0.00025786,2]
[422516058,1779018643000,-160.52,0.00025811,7]
[422516068,1779018643000,-605.80084441,0.00026397,2]
[422516069,1779018643000,-296.62019742,0.00026484,2]
[422516076,1779018643000,-500.0,0.00027123,2]
[422516061,1779018643000,-550.0,0.00026,2]
[422516057,1779018643000,-210.74877588,0.000258,2]
[422516059,1779018643000,-160.86,0.00025811,7]
[422516066,1779018643000,-308.0,0.000262,2]
[422516062,1779018643000,-160.52,0.00026099,30]
[422516064,1779018643000,-1000.0,0.000262,2]
[422516063,1779018643000,-160.86,0.00026099,30]
[422516067,1779018643000,-1290.8,0.00026296,2]
[422516065,1779018643000,-314.0,0.000262,2]
[422516070,1779018643000,-200.0,0.00026663,2]
[422516071,1779018643000,-164.16086875,0.00026865,2]
[422516073,1779018643000,-500.0,0.00027123,2]
[422516081,1779018643000,-500.0,0.00027123,2]
[422516072,1779018643000,-1927.0,0.000271,7]